Workbook

Sheet GOALS
A1: 2013-03-01
C3: GOALS
A4: START DATE | C4: DIET & EXERCISE JOURNAL
A6: 2013-07-30
C8: DIETARY ANALYSIS
A10: END DATE
A12: 220.00
A16: START WEIGHT
A18: 180.00
C20: EXERCISE ANALYSIS
A22: END WEIGHT
A24: =StartWeight-EndWeight -> 40
A28: GOAL LOSS
A30: =EndDate-StartDate -> 151
A34: DAYS TO LOSE
A36: =WeightGoal/A30 -> 0.26
A40: LOSS PER DAY

Sheet DIET
B2: DIET
B3: =Subtitle -> DIET & EXERCISE JOURNAL
B5: DATE | C5: TIME | D5: DESCRIPTION | E5: CALORIES | F5: CARBS | G5: SUGARS | H5: FIBER | I5: NOTES
B6: 2013-03-01 | C6: 07:00:00 | D6: Coffee | E6: 10 | F6: 10 | G6: 0 | H6: 0 | I6: Morning coffee
B7: 2013-03-01 | C7: 08:00:00 | D7: Bagel | E7: 10 | F7: 10 | G7: 2 | H7: 10 | I7: Light breakfast
B8: 2013-03-01 | C8: 12:00:00 | D8: Lunch | E8: 350 | F8: 35 | G8: 12 | H8: 45 | I8: Turkey sandwich
B9: 2013-03-01 | C9: 19:00:00 | D9: Dinner | E9: 575 | F9: 75 | G9: 32 | H9: 95 | I9: Tater tot casserole
B10: 2013-03-02 | C10: 07:00:00 | D10: Coffee | E10: 10 | F10: 10 | G10: 0 | H10: 0 | I10: Morning coffee
B11: 2013-03-02 | C11: 08:00:00 | D11: Toast | E11: 10 | F11: 10 | G11: 2 | H11: 10 | I11: Light breakfast
B12: 2013-03-02 | C12: 12:00:00 | D12: Lunch | E12: 325 | F12: 40 | G12: 15 | H12: 55 | I12: Sandwich
B13: 2013-03-02 | C13: 19:00:00 | D13: Dinner | E13: 445 | F13: 45 | G13: 45 | H13: 45 | I13: Dinner
B14: 2013-03-03 | C14: 07:00:00 | D14: Coffee | E14: 10 | F14: 10 | G14: 0 | H14: 0 | I14: Morning coffee
B15: 2013-03-03 | C15: 08:00:00 | D15: Bagel | E15: 10 | F15: 10 | G15: 2 | H15: 10 | I15: Light breakfast
B16: 2013-03-03 | C16: 12:00:00 | D16: Lunch | E16: 50 | F16: 10 | G16: 2 | H16: 2 | I16: Salad
B17: 2013-03-03 | C17: 19:00:00 | D17: Dinner | E17: 456 | F17: 64 | G17: 32 | H17: 22 | I17: Dinner
B18: 2013-03-04 | C18: 07:00:00 | D18: Coffee | E18: 10 | F18: 10 | G18: 5 | H18: 0 | I18: Coffee
B19: 2013-03-04 | C19: 10:00:00 | D19: Coffee | E19: 10 | F19: 10 | G19: 5 | H19: 0 | I19: Coffee
B20: 2013-03-04 | C20: 12:15:00 | D20: Lunch | E20: 125 | F20: 15 | G20: 0 | H20: 35 | I20: Salad

Sheet EXERCISE
B2: EXERCISE
B3: =Subtitle -> DIET & EXERCISE JOURNAL
B5: DATE | C5: DURATION (MIN) | D5: CALORIES BURNED | E5: NOTES
B6: 2013-03-05 | C6: 30 | D6: 120 | E6: Treadmill workout
B7: 2013-03-06 | C7: 60 | D7: 180 | E7: Low impact aerobics
B8: 2013-03-07 | C8: 60 | D8: 350 | E8: Extreme workout
B9: 2013-03-08 | C9: 30 | D9: 150 | E9: Treadmill workout
B10: 2013-03-09 | C10: 25 | D10: 125 | E10: Run
B11: 2013-03-10 | C11: 20 | D11: 285 | E11: Treadmill workout
B12: 2013-03-11 | C12: 40 | D12: 205 | E12: Run
B13: 2013-03-12 | C13: 30 | D13: 335 | E13: Run
B14: 2013-03-13 | C14: 40 | D14: 175 | E14: Run
B15: 2013-03-14 | C15: 45 | D15: 325 | E15: Treadmill workout
B16: 2013-03-15 | C16: 40 | D16: 270 | E16: Run
B17: 2013-03-16 | C17: 20 | D17: 295 | E17: Treadmill workout
B18: 2013-03-17 | C18: 45 | D18: 350 | E18: Run
B19: 2013-03-18 | C19: 35 | D19: 320 | E19: Run
B20: 2013-03-19 | C20: 40 | D20: 290 | E20: Run
B21: 2013-03-20 | C21: 25 | D21: 265 | E21: Treadmill workout
B22: 2013-03-21 | C22: 20 | D22: 195 | E22: Run

Sheet Chart Calculations (hidden)
B2: EXERCISE ANALYSIS CHARTING DATA
B4: Starting row | C4: =ROW(tblDiet[[#Headers],[DATE]])+1 -> 6 | D4: DATE | E4: DAY | F4: FIBER | G4: SUGARS | H4: CARBS | I4: CALORIES | J4: Num
B5: Last diet entry | C5: =MATCH(9.99E+307,tblDiet[DATE])+DietRowStart-1 -> 20 | D5: =IFERROR(INDEX(tblDiet[],DietLastEnd-DietRowStart-J5,1),"") -> 2013-03-04 | E5: =UPPER(TEXT(D5,"DDD")) -> MON | F5: =IFERROR(INDEX(tblDiet[],DietLastEnd-DietRowStart-J5,7),NA()) -> 35 | G5: =IFERROR(INDEX(tblDiet[],DietLastEnd-DietRowStart-J5,6),NA()) -> 0 | H5: =IFERROR(INDEX(tblDiet[],DietLastEnd-DietRowStart-J5,5),NA()) -> 15 | I5: =IFERROR(INDEX(tblDiet[],DietLastEnd-DietRowStart-J5,4),NA()) -> 125 | J5: -1
D6: =IFERROR(INDEX(tblDiet[],DietLastEnd-DietRowStart-J6,1),"") -> 2013-03-04 | E6: MON | F6: =IFERROR(INDEX(tblDiet[],DietLastEnd-DietRowStart-J6,7),NA()) -> 0 | G6: =IFERROR(INDEX(tblDiet[],DietLastEnd-DietRowStart-J6,6),NA()) -> 5 | H6: =IFERROR(INDEX(tblDiet[],DietLastEnd-DietRowStart-J6,5),NA()) -> 10 | I6: =IFERROR(INDEX(tblDiet[],DietLastEnd-DietRowStart-J6,4),NA()) -> 10 | J6: 0
D7: =IFERROR(INDEX(tblDiet[],DietLastEnd-DietRowStart-J7,1),"") -> 2013-03-04 | E7: MON | F7: =IFERROR(INDEX(tblDiet[],DietLastEnd-DietRowStart-J7,7),NA()) -> 0 | G7: =IFERROR(INDEX(tblDiet[],DietLastEnd-DietRowStart-J7,6),NA()) -> 5 | H7: =IFERROR(INDEX(tblDiet[],DietLastEnd-DietRowStart-J7,5),NA()) -> 10 | I7: =IFERROR(INDEX(tblDiet[],DietLastEnd-DietRowStart-J7,4),NA()) -> 10 | J7: 1
D8: =IFERROR(INDEX(tblDiet[],DietLastEnd-DietRowStart-J8,1),"") -> 2013-03-03 | E8: SUN | F8: =IFERROR(INDEX(tblDiet[],DietLastEnd-DietRowStart-J8,7),NA()) -> 22 | G8: =IFERROR(INDEX(tblDiet[],DietLastEnd-DietRowStart-J8,6),NA()) -> 32 | H8: =IFERROR(INDEX(tblDiet[],DietLastEnd-DietRowStart-J8,5),NA()) -> 64 | I8: =IFERROR(INDEX(tblDiet[],DietLastEnd-DietRowStart-J8,4),NA()) -> 456 | J8: 2
D9: =IFERROR(INDEX(tblDiet[],DietLastEnd-DietRowStart-J9,1),"") -> 2013-03-03 | E9: SUN | F9: =IFERROR(INDEX(tblDiet[],DietLastEnd-DietRowStart-J9,7),NA()) -> 2 | G9: =IFERROR(INDEX(tblDiet[],DietLastEnd-DietRowStart-J9,6),NA()) -> 2 | H9: =IFERROR(INDEX(tblDiet[],DietLastEnd-DietRowStart-J9,5),NA()) -> 10 | I9: =IFERROR(INDEX(tblDiet[],DietLastEnd-DietRowStart-J9,4),NA()) -> 50 | J9: 3
D10: =IFERROR(INDEX(tblDiet[],DietLastEnd-DietRowStart-J10,1),"") -> 2013-03-03 | E10: SUN | F10: =IFERROR(INDEX(tblDiet[],DietLastEnd-DietRowStart-J10,7),NA()) -> 10 | G10: =IFERROR(INDEX(tblDiet[],DietLastEnd-DietRowStart-J10,6),NA()) -> 2 | H10: =IFERROR(INDEX(tblDiet[],DietLastEnd-DietRowStart-J10,5),NA()) -> 10 | I10: =IFERROR(INDEX(tblDiet[],DietLastEnd-DietRowStart-J10,4),NA()) -> 10 | J10: 4
D11: =IFERROR(INDEX(tblDiet[],DietLastEnd-DietRowStart-J11,1),"") -> 2013-03-03 | E11: SUN | F11: =IFERROR(INDEX(tblDiet[],DietLastEnd-DietRowStart-J11,7),NA()) -> 0 | G11: =IFERROR(INDEX(tblDiet[],DietLastEnd-DietRowStart-J11,6),NA()) -> 0 | H11: =IFERROR(INDEX(tblDiet[],DietLastEnd-DietRowStart-J11,5),NA()) -> 10 | I11: =IFERROR(INDEX(tblDiet[],DietLastEnd-DietRowStart-J11,4),NA()) -> 10 | J11: 5
D12: =IFERROR(INDEX(tblDiet[],DietLastEnd-DietRowStart-J12,1),"") -> 2013-03-02 | E12: SAT | F12: =IFERROR(INDEX(tblDiet[],DietLastEnd-DietRowStart-J12,7),NA()) -> 45 | G12: =IFERROR(INDEX(tblDiet[],DietLastEnd-DietRowStart-J12,6),NA()) -> 45 | H12: =IFERROR(INDEX(tblDiet[],DietLastEnd-DietRowStart-J12,5),NA()) -> 45 | I12: =IFERROR(INDEX(tblDiet[],DietLastEnd-DietRowStart-J12,4),NA()) -> 445 | J12: 6
D13: =IFERROR(INDEX(tblDiet[],DietLastEnd-DietRowStart-J13,1),"") -> 2013-03-02 | E13: SAT | F13: =IFERROR(INDEX(tblDiet[],DietLastEnd-DietRowStart-J13,7),NA()) -> 55 | G13: =IFERROR(INDEX(tblDiet[],DietLastEnd-DietRowStart-J13,6),NA()) -> 15 | H13: =IFERROR(INDEX(tblDiet[],DietLastEnd-DietRowStart-J13,5),NA()) -> 40 | I13: =IFERROR(INDEX(tblDiet[],DietLastEnd-DietRowStart-J13,4),NA()) -> 325 | J13: 7
D14: =IFERROR(INDEX(tblDiet[],DietLastEnd-DietRowStart-J14,1),"") -> 2013-03-02 | E14: SAT | F14: =IFERROR(INDEX(tblDiet[],DietLastEnd-DietRowStart-J14,7),NA()) -> 10 | G14: =IFERROR(INDEX(tblDiet[],DietLastEnd-DietRowStart-J14,6),NA()) -> 2 | H14: =IFERROR(INDEX(tblDiet[],DietLastEnd-DietRowStart-J14,5),NA()) -> 10 | I14: =IFERROR(INDEX(tblDiet[],DietLastEnd-DietRowStart-J14,4),NA()) -> 10 | J14: 8
D15: =IFERROR(INDEX(tblDiet[],DietLastEnd-DietRowStart-J15,1),"") -> 2013-03-02 | E15: SAT | F15: =IFERROR(INDEX(tblDiet[],DietLastEnd-DietRowStart-J15,7),NA()) -> 0 | G15: =IFERROR(INDEX(tblDiet[],DietLastEnd-DietRowStart-J15,6),NA()) -> 0 | H15: =IFERROR(INDEX(tblDiet[],DietLastEnd-DietRowStart-J15,5),NA()) -> 10 | I15: =IFERROR(INDEX(tblDiet[],DietLastEnd-DietRowStart-J15,4),NA()) -> 10 | J15: 9
D16: =IFERROR(INDEX(tblDiet[],DietLastEnd-DietRowStart-J16,1),"") -> 2013-03-01 | E16: FRI | F16: =IFERROR(INDEX(tblDiet[],DietLastEnd-DietRowStart-J16,7),NA()) -> 95 | G16: =IFERROR(INDEX(tblDiet[],DietLastEnd-DietRowStart-J16,6),NA()) -> 32 | H16: =IFERROR(INDEX(tblDiet[],DietLastEnd-DietRowStart-J16,5),NA()) -> 75 | I16: =IFERROR(INDEX(tblDiet[],DietLastEnd-DietRowStart-J16,4),NA()) -> 575 | J16: 10
D17: =IFERROR(INDEX(tblDiet[],DietLastEnd-DietRowStart-J17,1),"") -> 2013-03-01 | E17: FRI | F17: =IFERROR(INDEX(tblDiet[],DietLastEnd-DietRowStart-J17,7),NA()) -> 45 | G17: =IFERROR(INDEX(tblDiet[],DietLastEnd-DietRowStart-J17,6),NA()) -> 12 | H17: =IFERROR(INDEX(tblDiet[],DietLastEnd-DietRowStart-J17,5),NA()) -> 35 | I17: =IFERROR(INDEX(tblDiet[],DietLastEnd-DietRowStart-J17,4),NA()) -> 350 | J17: 11
D18: =IFERROR(INDEX(tblDiet[],DietLastEnd-DietRowStart-J18,1),"") -> 2013-03-01 | E18: FRI | F18: =IFERROR(INDEX(tblDiet[],DietLastEnd-DietRowStart-J18,7),NA()) -> 10 | G18: =IFERROR(INDEX(tblDiet[],DietLastEnd-DietRowStart-J18,6),NA()) -> 2 | H18: =IFERROR(INDEX(tblDiet[],DietLastEnd-DietRowStart-J18,5),NA()) -> 10 | I18: =IFERROR(INDEX(tblDiet[],DietLastEnd-DietRowStart-J18,4),NA()) -> 10 | J18: 12
B20: DIET ANALYSIS CHARTING DATA
B22: Starting row | C22: =ROW(tblExercise[[#Headers],[DATE]])+1 -> 6 | D22: DATE | E22: DAY | F22: DURATION (MIN) | G22: CALORIES BURNED | H22: Num
B23: Last diet entry | C23: =MATCH(9.99E+307,tblExercise[DATE])+ExerciseRowStart-1 -> 22 | D23: =IFERROR(INDEX(tblExercise[],ExerciseLastEnd-ExerciseRowStart-H23,1),"") -> 2013-03-21 | E23: =UPPER(TEXT(D23,"DDD")) -> THU | F23: =IFERROR(INDEX(tblExercise[],ExerciseLastEnd-ExerciseRowStart-H23,2),NA()) -> 20 | G23: =IFERROR(INDEX(tblExercise[],ExerciseLastEnd-ExerciseRowStart-H23,3),NA()) -> 195 | H23: -1
D24: =IFERROR(INDEX(tblExercise[],ExerciseLastEnd-ExerciseRowStart-H24,1),"") -> 2013-03-20 | E24: WED | F24: =IFERROR(INDEX(tblExercise[],ExerciseLastEnd-ExerciseRowStart-H24,2),NA()) -> 25 | G24: =IFERROR(INDEX(tblExercise[],ExerciseLastEnd-ExerciseRowStart-H24,3),NA()) -> 265 | H24: 0
D25: =IFERROR(INDEX(tblExercise[],ExerciseLastEnd-ExerciseRowStart-H25,1),"") -> 2013-03-19 | E25: TUE | F25: =IFERROR(INDEX(tblExercise[],ExerciseLastEnd-ExerciseRowStart-H25,2),NA()) -> 40 | G25: =IFERROR(INDEX(tblExercise[],ExerciseLastEnd-ExerciseRowStart-H25,3),NA()) -> 290 | H25: 1
D26: =IFERROR(INDEX(tblExercise[],ExerciseLastEnd-ExerciseRowStart-H26,1),"") -> 2013-03-18 | E26: MON | F26: =IFERROR(INDEX(tblExercise[],ExerciseLastEnd-ExerciseRowStart-H26,2),NA()) -> 35 | G26: =IFERROR(INDEX(tblExercise[],ExerciseLastEnd-ExerciseRowStart-H26,3),NA()) -> 320 | H26: 2
D27: =IFERROR(INDEX(tblExercise[],ExerciseLastEnd-ExerciseRowStart-H27,1),"") -> 2013-03-17 | E27: SUN | F27: =IFERROR(INDEX(tblExercise[],ExerciseLastEnd-ExerciseRowStart-H27,2),NA()) -> 45 | G27: =IFERROR(INDEX(tblExercise[],ExerciseLastEnd-ExerciseRowStart-H27,3),NA()) -> 350 | H27: 3
D28: =IFERROR(INDEX(tblExercise[],ExerciseLastEnd-ExerciseRowStart-H28,1),"") -> 2013-03-16 | E28: SAT | F28: =IFERROR(INDEX(tblExercise[],ExerciseLastEnd-ExerciseRowStart-H28,2),NA()) -> 20 | G28: =IFERROR(INDEX(tblExercise[],ExerciseLastEnd-ExerciseRowStart-H28,3),NA()) -> 295 | H28: 4
D29: =IFERROR(INDEX(tblExercise[],ExerciseLastEnd-ExerciseRowStart-H29,1),"") -> 2013-03-15 | E29: FRI | F29: =IFERROR(INDEX(tblExercise[],ExerciseLastEnd-ExerciseRowStart-H29,2),NA()) -> 40 | G29: =IFERROR(INDEX(tblExercise[],ExerciseLastEnd-ExerciseRowStart-H29,3),NA()) -> 270 | H29: 5
D30: =IFERROR(INDEX(tblExercise[],ExerciseLastEnd-ExerciseRowStart-H30,1),"") -> 2013-03-14 | E30: THU | F30: =IFERROR(INDEX(tblExercise[],ExerciseLastEnd-ExerciseRowStart-H30,2),NA()) -> 45 | G30: =IFERROR(INDEX(tblExercise[],ExerciseLastEnd-ExerciseRowStart-H30,3),NA()) -> 325 | H30: 6
D31: =IFERROR(INDEX(tblExercise[],ExerciseLastEnd-ExerciseRowStart-H31,1),"") -> 2013-03-13 | E31: WED | F31: =IFERROR(INDEX(tblExercise[],ExerciseLastEnd-ExerciseRowStart-H31,2),NA()) -> 40 | G31: =IFERROR(INDEX(tblExercise[],ExerciseLastEnd-ExerciseRowStart-H31,3),NA()) -> 175 | H31: 7
D32: =IFERROR(INDEX(tblExercise[],ExerciseLastEnd-ExerciseRowStart-H32,1),"") -> 2013-03-12 | E32: TUE | F32: =IFERROR(INDEX(tblExercise[],ExerciseLastEnd-ExerciseRowStart-H32,2),NA()) -> 30 | G32: =IFERROR(INDEX(tblExercise[],ExerciseLastEnd-ExerciseRowStart-H32,3),NA()) -> 335 | H32: 8
D33: =IFERROR(INDEX(tblExercise[],ExerciseLastEnd-ExerciseRowStart-H33,1),"") -> 2013-03-11 | E33: MON | F33: =IFERROR(INDEX(tblExercise[],ExerciseLastEnd-ExerciseRowStart-H33,2),NA()) -> 40 | G33: =IFERROR(INDEX(tblExercise[],ExerciseLastEnd-ExerciseRowStart-H33,3),NA()) -> 205 | H33: 9
D34: =IFERROR(INDEX(tblExercise[],ExerciseLastEnd-ExerciseRowStart-H34,1),"") -> 2013-03-10 | E34: SUN | F34: =IFERROR(INDEX(tblExercise[],ExerciseLastEnd-ExerciseRowStart-H34,2),NA()) -> 20 | G34: =IFERROR(INDEX(tblExercise[],ExerciseLastEnd-ExerciseRowStart-H34,3),NA()) -> 285 | H34: 10
D35: =IFERROR(INDEX(tblExercise[],ExerciseLastEnd-ExerciseRowStart-H35,1),"") -> 2013-03-09 | E35: SAT | F35: =IFERROR(INDEX(tblExercise[],ExerciseLastEnd-ExerciseRowStart-H35,2),NA()) -> 25 | G35: =IFERROR(INDEX(tblExercise[],ExerciseLastEnd-ExerciseRowStart-H35,3),NA()) -> 125 | H35: 11
D36: =IFERROR(INDEX(tblExercise[],ExerciseLastEnd-ExerciseRowStart-H36,1),"") -> 2013-03-08 | E36: FRI | F36: =IFERROR(INDEX(tblExercise[],ExerciseLastEnd-ExerciseRowStart-H36,2),NA()) -> 30 | G36: =IFERROR(INDEX(tblExercise[],ExerciseLastEnd-ExerciseRowStart-H36,3),NA()) -> 150 | H36: 12
